Cogmind - Beta 13 @@@ ROGUE MODE // 2024.05.26 @ 15:55:27 Player: kikul Result: Destroyed by S-10 Pest with Light Assault Rifle Performance ------------- Evolutions (0) 0 Regions Visited (2) 400 Robots Destroyed (12) 60 Value Destroyed (156) 156 Prototype IDs (0) 0 Alien Tech Used (0) 0 Bonus (0) 0 TOTAL SCORE: 616 Bonus ------- None Cogmind --------- Core Integrity 0/250 Matter 224/300 Energy 100/100 System Corruption 6% Temperature Cool (0) Movement Treading (160) Location -10/Mines Parts ------- > --- POWER (1) -------- (None) > --- PROPULSION (2) --- Light Treads > --- UTILITY (2) ------ Small Storage Unit Core Shielding > --- WEAPON (2) ------- (None) > --- INVENTORY (8) ---- Ion Engine Aluminum Leg Aluminum Leg Terrain Scanner Light Armor Plating Peak State ------------ > --- POWER ------------ Ion Engine > --- PROPULSION ------- Wheel Compact Wheel > --- UTILITY ---------- Small Storage Unit Light Armor Plating > --- WEAPON ----------- Medium Laser Light Assault Rifle > --- INVENTORY -------- Ion Engine Light Treads Light Treads Aluminum Leg Aluminum Leg Light Armor Plating Light Assault Rifle [Rating: 7] Favorites ----------- Power Ion Engine Engine Ion Engine Propulsion Wheel Treads Light Treads Leg Aluminum Leg Wheel Wheel Utility Small Storage Unit Storage Small Storage Unit Protection Light Armor Plating Weapon Light Assault Rifle Energy Gun Medium Laser Ballistic Gun Light Assault Rifle Build | -11 -10 -10 ------- Run | Yrd Mat Min Slots Evolved . | . . . Power . | . . . Propulsion . | . . . Utility . | . . . Weapon . | . . . Parts Attached 17 | 6 4 7 Power 3 | 1 . 2 Engine 3 | 1 . 2 Core . | . . . Reactor . | . . . Propulsion 7 | 2 1 4 Treads 2 | . . 2 Leg 2 | . . 2 Wheel 3 | 2 1 . Hover . | . . . Flight . | . . . Utility 4 | 1 2 1 Device . | . . . Storage 1 | 1 . . Processor . | . . . Hackware . | . . . Protection 3 | . 2 1 Artifact . | . . . Weapon 3 | 2 1 . Energy Gun 1 | 1 . . Energy Cannon . | . . . Ballistic Gun 2 | 1 1 . Ballistic Cannon . | . . . Launcher . | . . . Special Weapon . | . . . Impact Weapon . | . . . Slashing Weapon . | . . . Piercing Weapon . | . . . Special Melee Weapon . | . . . Unidentified Prototypes . | . . . Parts Lost 5 | . . 5 Power 1 | . . 1 Propulsion 2 | . . 2 Utility . | . . . Weapon 2 | . . 2 Highest Loss Streak 4 | . . 4 To Critical Strikes . | . . . Average Slot Usage (%) 89 | . 97 66 Engine 12 | . 14 7 Treads 5 | . . 19 Wheel 21 | . 28 4 Storage 14 | . 14 14 Protection 12 | . 11 14 Energy Gun 2 | . 3 . Ballistic Gun 19 | . 24 4 Naked Turns . | . . . Heaviest Build 16 | 13 16 15 Greatest Support 40 | 26 26 40 Greatest Overweight (x) 2 | 2 1 . Average Overweight (x) . | . . . Largest Inventory Capacity 8 | 8 8 8 Average Capacity 7 | 7 8 8 Most Carried 8 | 8 8 8 Average Carried 6 | 5 7 5 Final Capacity 8 | 8 8 8 Final Carried 8 | 6 8 5 Class Distribution -------------------- 100% | Mutant Dominant Class ---------------- Mutant | -10/Materials Mutant | -10/Mines Resources | -11 -10 -10 ----------- Run | Yrd Mat Min Matter Collected 352 | 262 90 . Remotely . | . . . Salvage Created 285 | 62 180 43 Parts 20 | . 17 3 Haulers Intercepted . | . . . Recyclers Shooed 1 | . . 1 Parts Field Recycled . | . . . Retrieved Matter . | . . . Parts Self-Destructed . | . . . Prevented . | . . . Kills | -11 -10 -10 ------- Run | Yrd Mat Min Combat Hostiles Destroyed 8 | . 7 1 Guns 8 | . 7 1 Classes Destroyed 6 | 1 5 . Worker 1 | . 1 . Builder 1 | . 1 . Recycler 1 | 1 . . Watcher 1 | . 1 . Swarmer 6 | . 6 . Grunt 2 | . 1 1 Best Kill Streak 6 | 1 6 1 Combat Bots Only 3 | . 3 1 Max Kills in Single Turn 1 | 1 1 1 Gunslinging . | . . . Exploded . | . . . Melee . | . . . Uniques/NPCs Destroyed . | . . . Combat | -11 -10 -10 -------- Run | Yrd Mat Min Hostile Shots Fired 127 | . 44 83 Missed 32 | . 7 25 Damage Taken 1037 | . 322 715 Core 255 | . 53 202 Absorbed by Shields . | . . . Redirected to Shielding 34 | . . 34 Core Remaining (%) 100 | 100 . . Volleys Fired 48 | 2 36 10 Largest 2 | 2 2 1 Hottest 70 | 70 40 20 Shots Fired 87 | 4 73 10 Gun 87 | 4 73 10 Cannon . | . . . Launcher . | . . . Special . | . . . Kinetic 85 | 2 73 10 Thermal 2 | 2 . . Explosive . | . . . Electromagnetic . | . . . Robot Hit Streak 6 | 3 5 6 Robot Miss Streak 4 | . 4 1 Penetration Max . | . . . Secondary Targets . | . . . Shots Hit Robots 40 | 3 30 7 Core Hits 24 | 2 18 4 Critical Kills . | . . . Critical Parts Destroyed . | . . . Critical Strikes . | . . . Melee Attacks . | . . . Impact . | . . . Slashing . | . . . Piercing . | . . . Sneak Attacks . | . . . Combat Hostiles . | . . . Follow-up Attacks . | . . . Damage Inflicted 394 | 40 294 60 Guns 384 | 40 288 56 Cannons . | . . . Explosions . | . . . Melee . | . . . Ramming 10 | . 6 4 Kinetic 359 | 15 288 56 Thermal 25 | 25 . . Explosive . | . . . Electromagnetic . | . . . Impact . | . . . Slashing . | . . . Piercing . | . . . Highest Corruption 6 | . 6 6 Average Corruption 3 | . 2 6 Corruption Purged . | . . . Corruption Blocked . | . . . Effects 6 | . 2 4 Message Errors 1 | . . 1 Matter Fused 1 | . 1 . Heat Flow Errors 1 | . . 1 Parts Rejected 2 | . . 2 Misfires 1 | . 1 . Overload Shots . | . . . Overflow Damage . | . . . Projectiles . | . . . Explosions . | . . . Melee . | . . . Knockbacks . | . . . Impact . | . . . Kinetic . | . . . Secondary . | . . . Self-Inflicted Damage 2 | . 2 . Shots . | . . . Rammed 4 | . 2 2 Targets Rammed 4 | . 2 2 Kicked . | . . . Crushed . | . . . Highest Temperature 204 | 40 24 204 Average Temperature 17 | 23 6 53 Received Heat Transfer 348 | . 42 306 Siege Activations . | . . . Robots Corrupted . | . . . Combat Hostiles . | . . . Parts Fried . | . . . Impact Corruptions . | . . . Robots Melted . | . . . Combat Hostiles . | . . . Parts Melted . | . . . Heat Transferred 74 | 74 . . Parts Sabotaged . | . . . Parts Stolen . | . . . Parts Stripped . | . . . Power Chain Reactions . | . . . Alert | -11 -10 -10 ------- Run | Yrd Mat Min Peak Influence 195 | 5 195 60 Initial 3 | . 3 . Average 34 | 1 48 15 Maximum Alert Level . | . . . Low Security (%) 100 | 100 100 100 Level 1 . | . . . Level 2 . | . . . Level 3 . | . . . Level 4 . | . . . Level 5 . | . . . High Security . | . . . Max Security . | . . . Squads Dispatched 1 | . 1 . Investigation 1 | . 1 . Extermination . | . . . Reinforcement . | . . . Assault . | . . . Garrison . | . . . Intercept . | . . . Searches Triggered . | . . . Construction Impeded . | . . . Haulers Reinforced . | . . . Active Scanning Responses . | . . . Cargo Convoy Interrupts . | . . . Stealth | -11 -10 -10 --------- Run | Yrd Mat Min Distress Signals 1 | . 1 . Communications Jammed . | . . . Distress Signals . | . . . Times Spotted 19 | . 10 9 Peak Tracking Total 7 | . 4 7 Tactical Retreats 2 | . . 2 Traps | -11 -10 -10 ------- Run | Yrd Mat Min Traps Triggered 3 | . 3 . Indirectly . | . . . Trap Hack Attempts . | . . . Triggered . | . . . Disarmed . | . . . Reprogrammed . | . . . Reused . | . . . Traps Extracted . | . . . Installed . | . . . Triggered . | . . . Machines | -11 -10 -10 ---------- Run | Yrd Mat Min Machines Disabled . | . . . Max in Single Turn . | . . . Machines Repaired . | . . . Machines Dismantled . | . . . Machines Sabotaged . | . . . Overloaded Fab Kills . | . . . Hacking | -11 -10 -10 --------- Run | Yrd Mat Min Machines Accessed . | . . . Terminals . | . . . Fabricators . | . . . Repair Stations . | . . . Recycling Units . | . . . Scanalyzers . | . . . Garrison Access . | . . . Total Hacks . | . . . Successful . | . . . Failed . | . . . Catastrophic . | . . . Database Lockouts . | . . . Manual . | . . . Terminals . | . . . Fabricators . | . . . Repair Stations . | . . . Recycling Units . | . . . Scanalyzers . | . . . Garrison Access . | . . . Terminal Hacks . | . . . Fabricator Hacks . | . . . Repair Station Hacks . | . . . Recycling Unit Hacks . | . . . Scanalyzer . | . . . Garrison Access Hacks . | . . . Unauthorized Hacks . | . . . Terminals . | . . . Fabricators . | . . . Repair Stations . | . . . Recycling Units . | . . . Scanalyzers . | . . . Garrison Access . | . . . Data Cores Recovered . | . . . Used . | . . . Hacking Detections . | . . . Full Trace Events . | . . . Feedback Events . | . . . Feedback Blocked . | . . . Robot Schematics Acquired . | . . . Robots Built . | . . . Authchips . | . . . Time . | . . . Total Robot Build Rating . | . . . Part Schematics Acquired . | . . . Parts Built . | . . . Authchips . | . . . Time . | . . . Total Part Build Rating . | . . . Parts Repaired . | . . . Time . | . . . Parts Recycled . | . . . Recycled Matter . | . . . Retrieved Matter . | . . . Retrieved Components . | . . . Parts Scanalyzed . | . . . Part Schematics Acquired . | . . . Parts Damaged . | . . . Bothacking | -11 -10 -10 ------------ Run | Yrd Mat Min Used RIF Installer . | . . . Robots Hacked . | . . . Non-combat . | . . . Combat . | . . . Robot Hacks Applied . | . . . Relay Couplers Released . | . . . Fabnet Peak Effective % . | . . . Robots Rewired . | . . . Allies Hacked . | . . . Hacks Repelled . | . . . Allies | -11 -10 -10 -------- Run | Yrd Mat Min Total Allies . | . . . Largest Group . | . . . Highest-Rated Group . | . . . Highest-Rated Ally . | . . . Total Orders . | . . . Ally Attacks . | . . . Total Damage . | . . . Kills . | . . . Allies Corrupted . | . . . Allies Melted . | . . . Intel | -11 -10 -10 ------- Run | Yrd Mat Min Robot Analysis Total . | . . . Derelict Logs Recovered . | . . . Drone Launches . | . . . Drone Recoveries . | . . . Exploration | -11 -10 -10 ------------- Run | Yrd Mat Min Turns Passed 671 | 96 431 144 Spaces Moved 440 | 71 300 69 Core 37 | 37 . . Treads 64 | . . 64 Legs . | . . . Wheels 339 | 34 300 5 Hover . | . . . Flight . | . . . Fastest Speed 50 | 50 80 80 Average Speed 100 | 103 87 154 Slowest Speed 160 | 150 95 160 Overloaded Moves . | . . . Propulsion Burnouts . | . . . Robots Hopped . | . . . Cave-ins Triggered . | . . . Exploration Rate (%) 19 | 4 34 21 Regions Visited 2 Branch Regions 1 Pre-discovered Areas . | . . . Known Exits Taken . | . . . Unknown Exits Taken 2 | 1 1 . Scrap Searched . | . . . Spaces Dug . | . . . Terrain Destroyed . | . . . Melee . | . . . Projectile . | . . . AOE . | . . . Terrain Rammed . | . . . Walls Destroyed . | . . . Machines Disabled . | . . . Actions | -11 -10 -10 --------- Run | Yrd Mat Min Total 597 | 90 411 96 Wait 69 | . 61 8 Move 438 | 70 299 69 Hop . | . . . Pick Up 16 | 11 5 . Fast Attach 3 | 2 1 . Attach 9 | 4 2 3 Detach . | . . . Swap 5 | . 1 4 Drop 5 | 1 4 . Fire 48 | 2 36 10 Melee . | . . . Ram 2 | . 2 . Kick . | . . . Crush 2 | . . 2 Escape Stasis . | . . . Rewire . | . . . Trap . | . . . Miscellaneous . | . . . Route ------- -11/Scrapyard -10/Materials (discovered 2 exits: [*Mat] / [*Min]) -10/Mines History --------- Turn | Location | Event 7 | -11/Scrapyard | Discovered new exit (range 15) 97 | -11/Scrapyard | Entered Materials 316 | -10/Materials | Build established: Mutant 462 | -10/Materials | Discovered new exit (range 16) 508 | -10/Materials | Discovered new exit (range 16) 528 | -10/Materials | Entered Mines 568 | -10/Mines | Met a Derelict bent on vengeance 578 | -10/Mines | Core integrity fell below 50% 592 | -10/Mines | Lost 4 parts (2n2w) 651 | -10/Mines | Core integrity fell below 20% 672 | -10/Mines | Destroyed by S-10 Pest with Light Assault Rifle Last Messages --------------- 00523_ The floor emits a surge of raw power. 00523_ System corrupted (+2). LOCATION=UNKNOWN GOAL=ESCAPE Something is scanning the area. 00532_ Lgt. Assault Rifle destroyed. 00543_ Wheel destroyed. 00554_ System corrupted: Lgt. Armor Plating rejected. 00555_ Wheel destroyed. 00557_ G-34 Mercenary destroyed. 00561_ Lgt. Assault Rifle destroyed. 00574_ Slammed into G-47 Trooper. 00585_ Slammed into R-06 Scavenger. 00608_ ,SMATVJA&P&K7EFOIT8LGCM985DC3N5JPAZF 00609_ Ion Engine destroyed. 00623_ System corrupted: Heat flow error (+227). 00626_ K-01 Serf collects debris. 00662_ System corrupted: Lgt. Treads rejected. 00664_ R-06 Scavenger collects Lgt. Treads. Map ----- +----------------------------------------------------+ | ?????????????????????????????????????????? | | ?????????????????????????????????????????? | | ?????????????????????????????????????????? | | ?????????????????????????????????????????? | | ?????????????????????????????????????????? | | ?????????????????????????????????????????? | | ?????????????????????????????????????????? | | ?????????????????????????????????????????? | | ?????????????????????????????????????????? | | ?????????????????????????????????????????? | | ?????????????????????????????????????????? | | ?????????????????????????????????????????? | | ?????????????????????????????????????????? | | ?????????????????????????????????????????? | | ?????????????????????????####????????????? | | ????????????????????????## ###### #?????? | | ?????????????????????#### #?????? | | ????????????????????## #?????? | | ???????????????????## ######???????#? | | ??????????????????## #??????????? #? | | ??????????????????# ## ####???????? #? | | ??????????????????# ### ##??????? #? | | ??????????????????# ### ##?????# #? | | ??????????????????## ### ##???# ## | | ?????????###########s#?## #### | | ?????????# @ su#??###### | | ?????????# ### ##### #???????## """ | | ???????????????????# #????????## """ | | ??????????????????? ?????????# """ | | ??????????????????? ????????## ### | | ???????????????????### ????????## ##??? | | ?????????????????????? ??#??????### #???? | | ??????????????????????? ### ??????# #???? | | ??????????????????????? ## ##### #???? | | ????????????????????????# #???? | | ????????????????????? $ #???? | | ????????????????????? ## ### #???? | | ????????????????????????????## ???# #???? | | ??????????????????????????????????# #???? | | ??????????????????????????????????# #???? | | ??????????????????????????????????# #???? | | ??????????????????????????????????# #???? | | ??????????????????????????????????# #???? | | ??????????????????????????????????# #???? | | ??????????????????????????????????# #???? | | ??????????????????????????????????# #???? | | ??????????????????????????????????# #???? | | ??????????????????????????????????# #???? | | ??????????????????????????????????# #???? | | ??????????????????????????????????# #??## | +----------------------------------------------------+ Best States ------------- Heat Dissipation 25 Energy Generation 10 Energy Capacity 250 Matter Stores 300 Matter Capacity 300 Sight Range 16 Terrain Scan Density 10 Armor Coverage 150 Core Shielding 20 Evasion (%) 50 Recoil Reduction 2 Item Schematics ----------------- None Robot Schematics ------------------ None Fabricated ------------ Nothing Alien Tech Used ----------------- None Achievements -------------- None Challenges ------------ None Game ------ Seed ImprovedBombardmentSword Manual? 0 Play Time 00:14:28 Cumulative 4.9 hours Start 2024.05.26 @ 15:41:51 End 2024.05.26 @ 15:55:27 Sessions 1 Manual Loads 0 Difficulty Rogue Special Mode None Game No. 8 Rogue 8 Adventurer 0 Explorer 0 Win Type - Total 0 Types 0/0/0/0/0/0/0/0/0 Lore% 2 Gallery% 7 Achievement% 6 Wizard Run 0 Options --------- Layout 1 ASCII 0 Keyboard 0 Movement Mouse Keybinds 0 Fullscreen 1 Font 32/SmallcapsGlow Map View 50x35 Zoom Use 0% Tactical HUD 1 Map Filters NONE Filters NONE Steam 1 RUN: 79689be8-aff6-4b6e-b6d0-3413855b40fc